Workbook

Sheet Read Me!
A2: TFIR 2016 Pension Choice Model
A3: First, please read documentation at:
A4: https://senate.universityofcalifornia.edu/resources/pension-choice-model.html
A5: This spreadsheet is intended to help new UC employees hired after July 1, 2016 choose
A6: between Savings Choice, Pension Choice, or Second Choice.
A8: All inputs should be entered on the "Home_Page" tab, and users are encouraged to experiment
A9: with different values for investment returns, inflation, and retirement age.
A10: Note that investment returns and inflation are held constant for the simulations, so
A11: you should choose values that represent reasonable long-run values. The UC Investment Office
A12: currently assumes a 6.75% investment return and 2.5% inflation. Note that you must choose
A13: values so that investment return is strictly greater than inflation and both are greater than
A14: zero. Entering other values will lead to erroneous calculations. The "2016 Pension Choice
A15: Model" page (see link on line 4) provides some historical data on investment returns and
A16: inflation that will help you choose reasonable values for these key inputs.
A18: The "Year of Second Choice Election" is the year of UC employment when you elect to switch
A19: from Savings to Pension choice. The election is effective the next year.
A21: The "Annuity End Age" controls the age when the withdrawals from retirement
A22: savings balances lead to zero balances. This should generally be at least 100 years for
A23: a single retiree, but employees with younger spouses should set a higher value if they
A24: expect their retirement savings to last for their spouse's life.
A26: Note that macros must be enabled for this spreadsheet to work, and you must
A27: click the "GO!" button on the Home_Page each time you change any of the input values.
A29: The detailed computations are carried out on tab "Sheet1," and there is a full description at
A30: https://senate.universityofcalifornia.edu/_files/committees/tfir/excel-sheet-description.pdf
A33: © David Brownstone, Jim Chalfant, and Daniel Hare 2022

Sheet Home_Page
A1: TFIR 2016 Pension Choice Model Version 4.2
B2: March 31, 2022
A3: Faculty Title? (Yes/No) | D3: yes | F3: Average Rate of Return (%) | I3: 6.75
A4: Starting Age at UC: | D4: 35
A5: Must be greater than 24 | F5: Average Inflation Rate (%) | I5: 2.50
A6: Starting Salary | D6: 125000
A7: or Covered Compensation | F7: Year of Second Choice Election | I7: 6
F8: Must be between 5 and 10 years
A9: Minimum Retirement Age | D9: 60
A10: Must be at least 60 and less than | D10: =D4+45 -> 80 | F10: Annuity End Age | I10: 100
A11: Prepared For: | D11: Your Name Here
A12: If you change any boxed numbers above row 10 you must hit the "Go!" button to update calculations
A13: The information below is only valid for UC employees first hired after July 1, 2016
A45: Note: for each age before | C45: =D9 -> 60 | D45: the graphs show the annuitized wealth from UC Retirement
A46: sources if you separate at that age and wait until age | E46: =D9 -> 60 | F46: to retire.
A47: For all ages equal or above age | D47: =D9 -> 60 | E47: the graphs show the UC pension from retiring at that
A48: age plus the annuitized value of the UC Retirement Savings balance starting at that age until
A49: the annuity end age of | C49: =I10 -> 100

Sheet Tabular_Output
A1: All Inputs in the first 8 rows must be changed on the Home_Page | K1: last row | M1: Workspace | O1: Percent Income | R1: Annuitization
A2: Faculty Title? (Yes/No) | D2: no | F2: Average Rate of Return (%) | I2: 6.75 | K2: =MAX(70,(Home_Page!$D$9+5))-(Home_Page!D4)+2 -> 37 | L2: Salary | M2: Age | N2: Savings Choice | O2: Pension Choice | P2: Second Choice | Q2: Savings Choice | R2: Pension Choice | S2: Second Choice
A3: Starting Age at UC: | D3: 35 | L3: =Sheet1!D3 -> 125000 | M3: =Sheet1!A3 -> 35 | N3: =Sheet1!AB3 -> 0% | O3: =Sheet1!AA3 -> 0% | P3: =Sheet1!AC3 -> 0% | Q3: =Sheet1!Q3 -> 0 | R3: =Sheet1!Y3 -> 0 | S3: =Sheet1!AP3 -> 0
F4: Average Inflation Rate (%) | I4: 2.50 | L4: =Sheet1!D4 -> 132125 | M4: =Sheet1!A4 -> 36 | N4: =Sheet1!AB4 -> 1% | O4: =Sheet1!AA4 -> 0% | P4: =Sheet1!AC4 -> 1% | Q4: =Sheet1!Q4 -> 5252 | R4: =Sheet1!Y4 -> 1751 | S4: =Sheet1!AP4 -> 5252
A5: Starting Salary | D5: =Home_Page!$D$6 -> 125000 | L5: =Sheet1!D5 -> 139656 | M5: =Sheet1!A5 -> 37 | N5: =Sheet1!AB5 -> 2% | O5: =Sheet1!AA5 -> 1% | P5: =Sheet1!AC5 -> 2% | Q5: =Sheet1!Q5 -> 10452 | R5: =Sheet1!Y5 -> 3500 | S5: =Sheet1!AP5 -> 10452
A6: or Covered Compensation | F6: =Home_Page!F7 -> Year of Second Choice Election | I6: =Home_Page!$I$7 -> 6 | L6: =Sheet1!D6 -> 147547 | M6: =Sheet1!A6 -> 38 | N6: =Sheet1!AB6 -> 3% | O6: =Sheet1!AA6 -> 1% | P6: =Sheet1!AC6 -> 3% | Q6: =Sheet1!Q6 -> 15601 | R6: =Sheet1!Y6 -> 5304 | S6: =Sheet1!AP6 -> 15601
A7: =Home_Page!A9 -> Minimum Retirement Age | D7: =Home_Page!D9 -> 60 | F7: Annuity End Age | I7: =Home_Page!I10 -> 100 | L7: =Sheet1!D7 -> 155883 | M7: =Sheet1!A7 -> 39 | N7: =Sheet1!AB7 -> 5% | O7: =Sheet1!AA7 -> 2% | P7: =Sheet1!AC7 -> 5% | Q7: =Sheet1!Q7 -> 20697 | R7: =Sheet1!Y7 -> 7158 | S7: =Sheet1!AP7 -> 20697
A8: Prepared For: | D8: =Home_Page!$D$11 -> Your Name Here | L8: =Sheet1!D8 -> 164690 | M8: =Sheet1!A8 -> 40 | N8: =Sheet1!AB8 -> 6% | O8: =Sheet1!AA8 -> 5% | P8: =Sheet1!AC8 -> 6% | Q8: =Sheet1!Q8 -> 25741 | R8: =Sheet1!Y8 -> 21473 | S8: =Sheet1!AP8 -> 25741
A9: =Sheet1!A1 -> The information below is only valid for UC employees first hired after July 1, 2016 | L9: =Sheet1!D9 -> 173995 | M9: =Sheet1!A9 -> 41 | N9: =Sheet1!AB9 -> 7% | O9: =Sheet1!AA9 -> 6% | P9: =Sheet1!AC9 -> 7% | Q9: =Sheet1!Q9 -> 30732 | R9: =Sheet1!Y9 -> 26272 | S9: =Sheet1!AP9 -> 30732
C10: Percent of Income Replacement | G10: Annuitization | L10: =Sheet1!D10 -> 183739 | M10: =Sheet1!A10 -> 42 | N10: =Sheet1!AB10 -> 8% | O10: =Sheet1!AA10 -> 7% | P10: =Sheet1!AC10 -> 8% | Q10: =Sheet1!Q10 -> 35672 | R10: =Sheet1!Y10 -> 31247 | S10: =Sheet1!AP10 -> 35325
A11: Salary | B11: Separation Age | C11: Savings Choice | D11: Pension Choice | E11: Second Choice | F11: Savings Choice | G11: Pension Choice | H11: Second Choice | L11: =Sheet1!D12 -> 204797 | M11: =Sheet1!A12 -> 44 | N11: =Sheet1!AB12 -> 10% | O11: =Sheet1!AA12 -> 9% | P11: =Sheet1!AC12 -> 10% | Q11: =Sheet1!Q12 -> 45394 | R11: =Sheet1!Y12 -> 41726 | S11: =Sheet1!AP12 -> 45012
A12: 125000 | B12: 35 | C12: 0% | D12: 0% | E12: 0% | F12: 0 | G12: 0 | H12: 0 | L12: =Sheet1!D13 -> 216061 | M12: =Sheet1!A13 -> 45 | N12: =Sheet1!AB13 -> 11% | O12: =Sheet1!AA13 -> 10% | P12: =Sheet1!AC13 -> 11% | Q12: =Sheet1!Q13 -> 50173 | R12: =Sheet1!Y13 -> 47233 | S12: =Sheet1!AP13 -> 50108
A13: 132125 | B13: 36 | C13: 1% | D13: 0% | E13: 1% | F13: 5252 | G13: 1751 | H13: 5252 | L13: =Sheet1!D14 -> 227728 | M13: =Sheet1!A14 -> 46 | N13: =Sheet1!AB14 -> 12% | O13: =Sheet1!AA14 -> 12% | P13: =Sheet1!AC14 -> 12% | Q13: =Sheet1!Q14 -> 54897 | R13: =Sheet1!Y14 -> 52921 | S13: =Sheet1!AP14 -> 55375
A14: 139656 | B14: 37 | C14: 2% | D14: 1% | E14: 2% | F14: 10452 | G14: 3500 | H14: 10452 | L14: =Sheet1!D15 -> 240026 | M14: =Sheet1!A15 -> 47 | N14: =Sheet1!AB15 -> 13% | O14: =Sheet1!AA15 -> 13% | P14: =Sheet1!AC15 -> 13% | Q14: =Sheet1!Q15 -> 59562 | R14: =Sheet1!Y15 -> 58790 | S14: =Sheet1!AP15 -> 60812
A15: 147547 | B15: 38 | C15: 3% | D15: 1% | E15: 3% | F15: 15601 | G15: 5304 | H15: 15601 | L15: =Sheet1!D16 -> 252747 | M15: =Sheet1!A16 -> 48 | N15: =Sheet1!AB16 -> 14% | O15: =Sheet1!AA16 -> 14% | P15: =Sheet1!AC16 -> 15% | Q15: =Sheet1!Q16 -> 64167 | R15: =Sheet1!Y16 -> 64842 | S15: =Sheet1!AP16 -> 66422
A16: 155883 | B16: 39 | C16: 5% | D16: 2% | E16: 5% | F16: 20697 | G16: 7158 | H16: 20697 | L16: =Sheet1!D17 -> 265890 | M16: =Sheet1!A17 -> 49 | N16: =Sheet1!AB17 -> 15% | O16: =Sheet1!AA17 -> 16% | P16: =Sheet1!AC17 -> 16% | Q16: =Sheet1!Q17 -> 68709 | R16: =Sheet1!Y17 -> 71080 | S16: =Sheet1!AP17 -> 72205
A17: 164690 | B17: 40 | C17: 6% | D17: 5% | E17: 6% | F17: 25741 | G17: 21473 | H17: 25741 | L17: =Sheet1!D18 -> 279450 | M17: =Sheet1!A18 -> 50 | N17: =Sheet1!AB18 -> 16% | O17: =Sheet1!AA18 -> 17% | P17: =Sheet1!AC18 -> 17% | Q17: =Sheet1!Q18 -> 73186 | R17: =Sheet1!Y18 -> 77503 | S17: =Sheet1!AP18 -> 78163
A18: 173995 | B18: 41 | C18: 7% | D18: 6% | E18: 7% | F18: 30732 | G18: 26272 | H18: 30732 | L18: =Sheet1!D19 -> 293423 | M18: =Sheet1!A19 -> 51 | N18: =Sheet1!AB19 -> 17% | O18: =Sheet1!AA19 -> 18% | P18: =Sheet1!AC19 -> 19% | Q18: =Sheet1!Q19 -> 77594 | R18: =Sheet1!Y19 -> 84113 | S18: =Sheet1!AP19 -> 84297
A19: 183739 | B19: 42 | C19: 8% | D19: 7% | E19: 8% | F19: 35672 | G19: 31247 | H19: 35325 | L19: =Sheet1!D20 -> 308094 | M19: =Sheet1!A20 -> 52 | N19: =Sheet1!AB20 -> 18% | O19: =Sheet1!AA20 -> 20% | P19: =Sheet1!AC20 -> 20% | Q19: =Sheet1!Q20 -> 81929 | R19: =Sheet1!Y20 -> 90913 | S19: =Sheet1!AP20 -> 90608
A20: 204797 | B20: 44 | C20: 10% | D20: 9% | E20: 10% | F20: 45394 | G20: 41726 | H20: 45012 | L20: =Sheet1!D21 -> 323499 | M20: =Sheet1!A21 -> 53 | N20: =Sheet1!AB21 -> 19% | O20: =Sheet1!AA21 -> 22% | P20: =Sheet1!AC21 -> 21% | Q20: =Sheet1!Q21 -> 86193 | R20: =Sheet1!Y21 -> 97907 | S20: =Sheet1!AP21 -> 97101
A21: 216061 | B21: 45 | C21: 11% | D21: 10% | E21: 11% | F21: 50173 | G21: 47233 | H21: 50108 | L21: =Sheet1!D22 -> 339674 | M21: =Sheet1!A22 -> 54 | N21: =Sheet1!AB22 -> 20% | O21: =Sheet1!AA22 -> 23% | P21: =Sheet1!AC22 -> 23% | Q21: =Sheet1!Q22 -> 90387 | R21: =Sheet1!Y22 -> 105103 | S21: =Sheet1!AP22 -> 103783
A22: 227728 | B22: 46 | C22: 12% | D22: 12% | E22: 12% | F22: 54897 | G22: 52921 | H22: 55375 | L22: =Sheet1!D23 -> 356657 | M22: =Sheet1!A23 -> 55 | N22: =Sheet1!AB23 -> 21% | O22: =Sheet1!AA23 -> 25% | P22: =Sheet1!AC23 -> 24% | Q22: =Sheet1!Q23 -> 94513 | R22: =Sheet1!Y23 -> 112505 | S22: =Sheet1!AP23 -> 110659
A23: 240026 | B23: 47 | C23: 13% | D23: 13% | E23: 13% | F23: 59562 | G23: 58790 | H23: 60812 | L23: =Sheet1!D24 -> 374490 | M23: =Sheet1!A24 -> 56 | N23: =Sheet1!AB24 -> 22% | O23: =Sheet1!AA24 -> 26% | P23: =Sheet1!AC24 -> 26% | Q23: =Sheet1!Q24 -> 98571 | R23: =Sheet1!Y24 -> 120121 | S23: =Sheet1!AP24 -> 117736
A24: 252747 | B24: 48 | C24: 14% | D24: 14% | E24: 15% | F24: 64167 | G24: 64842 | H24: 66422 | L24: =Sheet1!D25 -> 393215 | M24: =Sheet1!A25 -> 57 | N24: =Sheet1!AB25 -> 23% | O24: =Sheet1!AA25 -> 28% | P24: =Sheet1!AC25 -> 27% | Q24: =Sheet1!Q25 -> 102562 | R24: =Sheet1!Y25 -> 127957 | S24: =Sheet1!AP25 -> 125019
A25: 265890 | B25: 49 | C25: 15% | D25: 16% | E25: 16% | F25: 68709 | G25: 71080 | H25: 72205 | L25: =Sheet1!D26 -> 412875 | M25: =Sheet1!A26 -> 58 | N25: =Sheet1!AB26 -> 23% | O25: =Sheet1!AA26 -> 30% | P25: =Sheet1!AC26 -> 29% | Q25: =Sheet1!Q26 -> 106488 | R25: =Sheet1!Y26 -> 136021 | S25: =Sheet1!AP26 -> 132516
A26: 279450 | B26: 50 | C26: 16% | D26: 17% | E26: 17% | F26: 73186 | G26: 77503 | H26: 78163 | L26: =Sheet1!D27 -> 433519 | M26: =Sheet1!A27 -> 59 | N26: =Sheet1!AB27 -> 24% | O26: =Sheet1!AA27 -> 32% | P26: =Sheet1!AC27 -> 31% | Q26: =Sheet1!Q27 -> 110349 | R26: =Sheet1!Y27 -> 144319 | S26: =Sheet1!AP27 -> 140234
A27: 293423 | B27: 51 | C27: 17% | D27: 18% | E27: 19% | F27: 77594 | G27: 84113 | H27: 84297 | L27: =Sheet1!D28 -> 455195 | M27: =Sheet1!A28 -> 60 | N27: =Sheet1!AB28 -> 25% | O27: =Sheet1!AA28 -> 34% | P27: =Sheet1!AC28 -> 33% | Q27: =Sheet1!Q28 -> 114148 | R27: =Sheet1!Y28 -> 152861 | S27: =Sheet1!AP28 -> 148180
A28: 308094 | B28: 52 | C28: 18% | D28: 20% | E28: 20% | F28: 81929 | G28: 90913 | H28: 90608 | L28: =Sheet1!D29 -> 477500 | M28: =Sheet1!A29 -> 61 | N28: =Sheet1!AB29 -> 27% | O28: =Sheet1!AA29 -> 36% | P28: =Sheet1!AC29 -> 35% | Q28: =Sheet1!Q29 -> 126983 | R28: =Sheet1!Y29 -> 174195 | S28: =Sheet1!AP29 -> 168481
A29: 323499 | B29: 53 | C29: 19% | D29: 22% | E29: 21% | F29: 86193 | G29: 97907 | H29: 97101 | L29: =Sheet1!D30 -> 500420 | M29: =Sheet1!A30 -> 62 | N29: =Sheet1!AB30 -> 28% | O29: =Sheet1!AA30 -> 39% | P29: =Sheet1!AC30 -> 38% | Q29: =Sheet1!Q30 -> 141117 | R29: =Sheet1!Y30 -> 197553 | S29: =Sheet1!AP30 -> 190822
A30: 339674 | B30: 54 | C30: 20% | D30: 23% | E30: 23% | F30: 90387 | G30: 105103 | H30: 103783 | L30: =Sheet1!D31 -> 523939 | M30: =Sheet1!A31 -> 63 | N30: =Sheet1!AB31 -> 30% | O30: =Sheet1!AA31 -> 43% | P30: =Sheet1!AC31 -> 41% | Q30: =Sheet1!Q31 -> 156682 | R30: =Sheet1!Y31 -> 223078 | S30: =Sheet1!AP31 -> 215356
A31: 356657 | B31: 55 | C31: 21% | D31: 25% | E31: 24% | F31: 94513 | G31: 112505 | H31: 110659 | L31: =Sheet1!D32 -> 548041 | M31: =Sheet1!A32 -> 64 | N31: =Sheet1!AB32 -> 32% | O31: =Sheet1!AA32 -> 46% | P31: =Sheet1!AC32 -> 44% | Q31: =Sheet1!Q32 -> 173827 | R31: =Sheet1!Y32 -> 250928 | S31: =Sheet1!AP32 -> 242250
A32: 374490 | B32: 56 | C32: 22% | D32: 26% | E32: 26% | F32: 98571 | G32: 120121 | H32: 117736 | L32: =Sheet1!D33 -> 572702 | M32: =Sheet1!A33 -> 65 | N32: =Sheet1!AB33 -> 34% | O32: =Sheet1!AA33 -> 49% | P32: =Sheet1!AC33 -> 47% | Q32: =Sheet1!Q33 -> 192718 | R32: =Sheet1!Y33 -> 281270 | S32: =Sheet1!AP33 -> 271682
A33: 393215 | B33: 57 | C33: 23% | D33: 28% | E33: 27% | F33: 102562 | G33: 127957 | H33: 125019 | L33: =Sheet1!D34 -> 597042 | M33: =Sheet1!A34 -> 66 | N33: =Sheet1!AB34 -> 36% | O33: =Sheet1!AA34 -> 51% | P33: =Sheet1!AC34 -> 49% | Q33: =Sheet1!Q34 -> 213543 | R33: =Sheet1!Y34 -> 302910 | S33: =Sheet1!AP34 -> 294675
A34: 412875 | B34: 58 | C34: 23% | D34: 30% | E34: 29% | F34: 106488 | G34: 136021 | H34: 132516 | L34: =Sheet1!D35 -> 622417 | M34: =Sheet1!A35 -> 67 | N34: =Sheet1!AB35 -> 38% | O34: =Sheet1!AA35 -> 52% | P34: =Sheet1!AC35 -> 51% | Q34: =Sheet1!Q35 -> 236502 | R34: =Sheet1!Y35 -> 326096 | S34: =Sheet1!AP35 -> 319398
A35: 433519 | B35: 59 | C35: 24% | D35: 32% | E35: 31% | F35: 110349 | G35: 144319 | H35: 140234 | L35: =Sheet1!D36 -> 648869 | M35: =Sheet1!A36 -> 68 | N35: =Sheet1!AB36 -> 40% | O35: =Sheet1!AA36 -> 54% | P35: =Sheet1!AC36 -> 53% | Q35: =Sheet1!Q36 -> 261839 | R35: =Sheet1!Y36 -> 350968 | S35: =Sheet1!AP36 -> 346016
A36: 455195 | B36: 60 | C36: 25% | D36: 34% | E36: 33% | F36: 114148 | G36: 152861 | H36: 148180 | L36: =Sheet1!D37 -> 676446 | M36: =Sheet1!A37 -> 69 | N36: =Sheet1!AB37 -> 43% | O36: =Sheet1!AA37 -> 56% | P36: =Sheet1!AC37 -> 55% | Q36: =Sheet1!Q37 -> 289826 | R36: =Sheet1!Y37 -> 377686 | S36: =Sheet1!AP37 -> 374713
A37: 477500 | B37: 61 | C37: 27% | D37: 36% | E37: 35% | F37: 126983 | G37: 174195 | H37: 168481 | L37: =Sheet1!D38 -> 705195 | M37: =Sheet1!A38 -> 70 | N37: =Sheet1!AB38 -> 45% | O37: =Sheet1!AA38 -> 58% | P37: =Sheet1!AC38 -> 58% | Q37: =Sheet1!Q38 -> 320728 | R37: =Sheet1!Y38 -> 406390 | S37: =Sheet1!AP38 -> 405657
A38: 500420 | B38: 62 | C38: 28% | D38: 39% | E38: 38% | F38: 141117 | G38: 197553 | H38: 190822 | L38: =Sheet1!D39 -> 735166 | M38: =Sheet1!A39 -> 71 | N38: =Sheet1!AB39 -> 48% | O38: =Sheet1!AA39 -> 59% | P38: =Sheet1!AC39 -> 60% | Q38: =Sheet1!Q39 -> 354826 | R38: =Sheet1!Y39 -> 437225 | S38: =Sheet1!AP39 -> 439025
A39: 523939 | B39: 63 | C39: 30% | D39: 43% | E39: 41% | F39: 156682 | G39: 223078 | H39: 215356 | L39: =Sheet1!D40 -> 766410 | M39: =Sheet1!A40 -> 72 | N39: =Sheet1!AB40 -> 51% | O39: =Sheet1!AA40 -> 61% | P39: =Sheet1!AC40 -> 62% | Q39: =Sheet1!Q40 -> 392507 | R39: =Sheet1!Y40 -> 470404 | S39: =Sheet1!AP40 -> 475069
A40: 548041 | B40: 64 | C40: 32% | D40: 46% | E40: 44% | F40: 173827 | G40: 250928 | H40: 242250 | L40: =Sheet1!D41 -> 798983 | M40: =Sheet1!A41 -> 73 | N40: =Sheet1!AB41 -> 54% | O40: =Sheet1!AA41 -> 63% | P40: =Sheet1!AC41 -> 64% | Q40: =Sheet1!Q41 -> 434218 | R40: =Sheet1!Y41 -> 506171 | S40: =Sheet1!AP41 -> 514076
A41: 572702 | B41: 65 | C41: 34% | D41: 49% | E41: 47% | F41: 192718 | G41: 281270 | H41: 271682 | L41: =Sheet1!D42 -> 832940 | M41: =Sheet1!A42 -> 74 | N41: =Sheet1!AB42 -> 58% | O41: =Sheet1!AA42 -> 65% | P41: =Sheet1!AC42 -> 67% | Q41: =Sheet1!Q42 -> 480476 | R41: =Sheet1!Y42 -> 544807 | S41: =Sheet1!AP42 -> 556378
A42: 597042 | B42: 66 | C42: 36% | D42: 51% | E42: 49% | F42: 213543 | G42: 302910 | H42: 294675 | L42: =Sheet1!D43 -> 868340 | M42: =Sheet1!A43 -> 75 | N42: =Sheet1!AB43 -> 61% | O42: =Sheet1!AA43 -> 68% | P42: =Sheet1!AC43 -> 69% | Q42: =Sheet1!Q43 -> 531881 | R42: =Sheet1!Y43 -> 586637 | S42: =Sheet1!AP43 -> 602357
A43: 622417 | B43: 67 | C43: 38% | D43: 52% | E43: 51% | F43: 236502 | G43: 326096 | H43: 319398 | L43: =Sheet1!D44 -> 905244 | M43: =Sheet1!A44 -> 76 | N43: =Sheet1!AB44 -> 65% | O43: =Sheet1!AA44 -> 69% | P43: =Sheet1!AC44 -> 72% | Q43: =Sheet1!Q44 -> 589137 | R43: =Sheet1!Y44 -> 623649 | S43: =Sheet1!AP44 -> 652459
A44: 648869 | B44: 68 | C44: 40% | D44: 54% | E44: 53% | F44: 261839 | G44: 350968 | H44: 346016 | L44: =Sheet1!D45 -> 943717 | M44: =Sheet1!A45 -> 77 | N44: =Sheet1!AB45 -> 69% | O44: =Sheet1!AA45 -> 70% | P44: =Sheet1!AC45 -> 75% | Q44: =Sheet1!Q45 -> 653071 | R44: =Sheet1!Y45 -> 664251 | S44: =Sheet1!AP45 -> 707204
A45: 676446 | B45: 69 | C45: 43% | D45: 56% | E45: 55% | F45: 289826 | G45: 377686 | H45: 374713 | L45: =Sheet1!D46 -> 983825 | M45: =Sheet1!A46 -> 78 | N45: =Sheet1!AB46 -> 74% | O45: =Sheet1!AA46 -> 72% | P45: =Sheet1!AC46 -> 78% | Q45: =Sheet1!Q46 -> 724663 | R45: =Sheet1!Y46 -> 708947 | S45: =Sheet1!AP46 -> 767208
A46: 705195 | B46: 70 | C46: 45% | D46: 58% | E46: 58% | F46: 320728 | G46: 406390 | H46: 405657 | L46: =Sheet1!D47 -> 1025637 | M46: =Sheet1!A47 -> 79 | N46: =Sheet1!AB47 -> 78% | O46: =Sheet1!AA47 -> 74% | P46: =Sheet1!AC47 -> 81% | Q46: =Sheet1!Q47 -> 805083 | R46: =Sheet1!Y47 -> 758336 | S46: =Sheet1!AP47 -> 833199
L47: =Sheet1!D48 -> 1069227 | M47: =Sheet1!A48 -> 80 | N47: =Sheet1!AB48 -> 84% | O47: =Sheet1!AA48 -> 76% | P47: =Sheet1!AC48 -> 85% | Q47: =Sheet1!Q48 -> 895736 | R47: =Sheet1!Y48 -> 813138 | S47: =Sheet1!AP48 -> 906053
L48: =Sheet1!D49 -> 1114669 | M48: =Sheet1!A49 -> 81 | N48: =Sheet1!AB49 -> 90% | O48: =Sheet1!AA49 -> 78% | P48: =Sheet1!AC49 -> 89% | Q48: =Sheet1!Q49 -> 998326 | R48: =Sheet1!Y49 -> 874222 | S48: =Sheet1!AP49 -> 986823
L49: =Sheet1!D50 -> 1162043 | M49: =Sheet1!A50 -> 82 | N49: =Sheet1!AB50 -> 96% | O49: =Sheet1!AA50 -> 81% | P49: =Sheet1!AC50 -> 92% | Q49: =Sheet1!Q50 -> 1114940 | R49: =Sheet1!Y50 -> 942654 | S49: =Sheet1!AP50 -> 1067072
A62: Data in Columns Q, R, and S are linked copies of Columns AB, AA, and AC, respectively from Sheet1.
A63: Data in Columns A - H are copied values from Columns L - S from only the Startng Age to Age 70
A64: The row number in the workspace corresponding to Age 70 is calculated as 70 - Starting Age +2

Sheet Sheet1
A1: =Home_Page!$A$13 -> The information below is only valid for UC employees first hired after July 1, 2016 | P1: Savings Choice | U1: Pension Choice | AA1: REPLACEMENT RATIOS | AI1: Second Choice
A2: Age | B2: Service | C2: Salary Growth | D2: Salary | E2: CCL | F2: PEPRA | G2: Max | H2: HAPC | I2: Benefit | J2: Benefit55 | K2: HAPC1 | L2: CBenefit | M2: CBenefit60 | N2: Age Factor | O2: Annual | P2: Inc. Bal. | Q2: Annuitization | S2: S1 = Above | T2: Inc. Bal. | U2: Annuitization | V2: S2 = 5%all | W2: Inc Bal | X2: Ann | Y2: Tier16 Plus | AA2: Pension | AB2: Savings | AC2: 2nd Choice | AE2: HAPC12nd | AF2: Ben65 | AG2: Ben60 | AH2: DC Bal | AI2: Ann | AJ2: S1 (Above) | AK2: Acc Balance | AL2: Annuity | AM2: S2 (5% all) | AN2: Acc Bal | AO2: Annuity | AP2: 2nd Choice | BA2: Salary Growth | BB2: Staff Salaries
A3: =$A$53 -> 35 | B3: 0 | C3: =BA3*$Q$53+BB3*(1-$Q$53) -> 2.7 | D3: =$B$53 -> 125000 | E3: 290000 | F3: 128059 | G3: =MIN(D3,F3) -> 125000 | H3: 0 | I3: =0.025*H3*B3 -> 0 | J3: 0 | K3: 0 | L3: =MIN(K3,(0.025*K3*B3)) -> 0 | M3: 0 | N3: =IF(A3<55,0,0.011)+IF(AND(A3>=55,A3<65),0.0014*(A3-55),0)+IF(A3>64,(0.025-0.011),0) -> 0.000 | O3: =($A$56+$A$57)*MIN(D3,E3) -> 18750 | P3: 0 | S3: =($A$57+0.03*(1-$Q$53))*IF(D3>F3,(MIN(D3,E3))-F3,0) -> 0 | T3: 0 | U3: 0 | V3: =0.05*MIN(D3,E3)*$Q$53 -> 6250 | W3: 0 | X3: 0 | Y3: =M3+U3+X3 -> 0 | AA3: =Y3/MAX(D3,$A$58) -> 0% | AB3: =Q3/(MAX(D3,$A$58)) -> 0% | AC3: =AP3/(MAX(D3,$A$58)) -> 0% | AE3: =K3*(B3 > $H$53) -> 0 | AF3: =MIN(AE3,(0.025*AE3*MAX(0,(B3-$H$53)))) -> 0 | AG3: =MIN(AE3,(AE3*MAX($F$53,N3)*MAX(0,(B3-($H$53))))) -> 0 | AH3: 0 | AJ3: =($A$57+0.03*(1-$Q$53))*IF(D3>F3,(MIN(D3,E3))-F3,0)*(B3 >= $H$53) -> 0 | AK3: 0 | AL3: 0 | AM3: =0.05*MIN(D3,E3)*(B3>$H$53-1)*$Q$53 -> 0 | AN3: 0 | AO3: 0 | AP3: =AG3+AI3+AL3+AO3 -> 0 | BA3: 2.7 | BB3: 2.5
A4: =A3+1 -> 36 | B4: =B3+1 -> 1 | C4: =BA4*$Q$53+BB4*(1-$Q$53) -> 2.7 | D4: =D3*(1+0.005+(C3/100)+$D$53) -> 132125 | E4: =E3*(1+$D$53) -> 297250 | F4: =F3*(1+$D$53) -> 131260 | G4: =MIN(D4,F4) -> 131260 | H4: 0 | I4: =0.025*H4*B4 -> 0 | J4: 0 | K4: 0 | L4: =MIN(K4,(0.025*K4*B4)) -> 0 | M4: 0 | N4: =IF(A4<55,0,0.011)+IF(AND(A4>=55,A4<65),0.0014*(A4-55),0)+IF(A4>64,(0.025-0.011),0) -> 0.000 | O4: =($A$56+$A$57)*MIN(D4,E4) -> 19819 | P4: =(1+$C$53)*P3+O3*($C$60/12) -> 19323 | Q4: =(P4*((1+$C$53)^(MAX(0,($E$53-A4))))*($C$53-$G$53)/(1-((1+$G$53)/(1+$C$53))^(MAX(0,($I$53-MAX($E$53,A4)))))) -> 5252 | S4: =($A$57+0.03*(1-$Q$53))*IF(D4>F4,(MIN(D4,E4))-F4,0) -> 61 | T4: =(1+$C$53)*T3+S3*($C$60/12) -> 0 | U4: =(T4*(1+$C$53)^(MAX(0,($E$53-A4)))*($C$53-$G$53)/(1-((1+$G$53)/(1+$C$53))^($I$53-MAX($E$53,A4)))) -> 0 | V4: =0.05*MIN(D4,E4)*$Q$53 -> 6606 | W4: =W3*(1+$C$53)+V3*$C$60/12 -> 6441 | X4: =(W4*(1+$C$53)^(MAX(0,($E$53-A4)))*($C$53-$G$53)/(1-((1+$G$53)/(1+$C$53))^($I$53-MAX($E$53,A4)))) -> 1751 | Y4: =M4+U4+X4 -> 1751 | AA4: =Y4/MAX(D4,$A$58) -> 0% | AB4: =Q4/(MAX(D4,$A$58)) -> 1% | AC4: =AP4/(MAX(D4,$A$58)) -> 1% | AE4: =K4*(B4 > $H$53) -> 0 | AF4: =MIN(AE4,(0.025*AE4*MAX(0,(B4-$H$53)))) -> 0 | AG4: =MIN(AE4,(AE4*MAX($F$53,N4)*MAX(0,(B4-($H$53))))) -> 0 | AH4: =(1+$C$53)*AH3+O3*($C$60/12)*($H$53 >= B4) -> 19323 | AI4: =(AH4*((1+$C$53)^(MAX(0,($E$53-A4))))*($C$53-$G$53)/(1-((1+$G$53)/(1+$C$53))^($I$53-MAX($E$53,A4)))) -> 5252 | AJ4: =($A$57+0.03*(1-$Q$53))*IF(D4>F4,(MIN(D4,E4))-F4,0)*(B4 >= $H$53) -> 0 | AK4: =(1+$C$53)*AK3+AJ3*($C$60/12) -> 0 | AL4: =(AK4*((1+$C$53)^(MAX(0,($E$53-A4))))*($C$53-$G$53)/(1-((1+$G$53)/(1+$C$53))^($I$53-MAX($E$53,A4)))) -> 0 | AM4: =0.05*MIN(D4,E4)*(B4>$H$53-1)*$Q$53 -> 0 | AN4: =(1+$C$53)*AN3+($C$60/12)*AM3 -> 0 | AO4: =(AN4*((1+$C$53)^(MAX(0,($E$53-A4))))*($C$53-$G$53)/(1-((1+$G$53)/(1+$C$53))^($I$53-MAX($E$53,A4)))) -> 0 | AP4: 5252 | BA4: 2.7 | BB4: 2.3
A5: =A4+1 -> 37 | B5: 2 | C5: 2.65 | D5: =D4*(1+0.005+(C4/100)+$D$53) -> 139656 | E5: =E4*(1+$D$53) -> 304681 | F5: 134542 | G5: 134542 | H5: 0 | I5: 0 | J5: 0 | K5: 0 | L5: 0 | M5: 0 | N5: 0.000 | O5: 20948 | P5: 41052 | Q5: =(P5*((1+$C$53)^(MAX(0,($E$53-A5))))*($C$53-$G$53)/(1-((1+$G$53)/(1+$C$53))^(MAX(0,($I$53-MAX($E$53,A5)))))) -> 10452 | S5: 358 | T5: 62 | U5: =(T5*(1+$C$53)^(MAX(0,($E$53-A5)))*($C$53-$G$53)/(1-((1+$G$53)/(1+$C$53))^($I$53-MAX($E$53,A5)))) -> 16 | V5: 6983 | W5: 13684 | X5: =(W5*(1+$C$53)^(MAX(0,($E$53-A5)))*($C$53-$G$53)/(1-((1+$G$53)/(1+$C$53))^($I$53-MAX($E$53,A5)))) -> 3484 | Y5: 3500 | AA5: 1% | AB5: 2% | AC5: 2% | AE5: 0 | AF5: 0 | AG5: 0 | AH5: =(1+$C$53)*AH4+O4*($C$60/12)*($H$53 >= B5) -> 41052 | AI5: =(AH5*((1+$C$53)^(MAX(0,($E$53-A5))))*($C$53-$G$53)/(1-((1+$G$53)/(1+$C$53))^($I$53-MAX($E$53,A5)))) -> 10452 | AJ5: 0 | AK5: 0 | AL5: =(AK5*((1+$C$53)^(MAX(0,($E$53-A5))))*($C$53-$G$53)/(1-((1+$G$53)/(1+$C$53))^($I$53-MAX($E$53,A5)))) -> 0 | AM5: 0 | AN5: 0 | AO5: =(AN5*((1+$C$53)^(MAX(0,($E$53-A5))))*($C$53-$G$53)/(1-((1+$G$53)/(1+$C$53))^($I$53-MAX($E$53,A5)))) -> 0 | AP5: 10452 | BA5: 2.65 | BB5: 2.1
A6: 38 | B6: 3 | C6: 2.65 | D6: 147547 | E6: 312298 | F6: 137906 | G6: 137906 | H6: 0 | I6: 0 | J6: 0 | K6: 0 | L6: 0 | M6: 0 | N6: 0.000 | O6: 22132 | P6: 65412 | Q6: 15601 | S6: 675 | T6: 436 | U6: 104 | V6: 7377 | W6: 21804 | X6: 5200 | Y6: 5304 | AA6: 1% | AB6: 3% | AC6: 3% | AE6: 0 | AF6: 0 | AG6: 0 | AH6: 65412 | AI6: 15601 | AJ6: 0 | AK6: 0 | AL6: 0 | AM6: 0 | AN6: 0 | AO6: 0 | AP6: 15601 | BA6: 2.65 | BB6: 1.9
A7: 39 | B7: 4 | C7: 2.65 | D7: 155883 | E7: 320106 | F7: 141353 | G7: 141353 | H7: 0 | I7: 0 | J7: 0 | K7: 0 | L7: 0 | M7: 0 | N7: 0.000 | O7: 23382 | P7: 92636 | Q7: 20697 | S7: 1017 | T7: 1160 | U7: 259 | V7: 7794 | W7: 30879 | X7: 6899 | Y7: 7158 | AA7: 2% | AB7: 5% | AC7: 5% | AE7: 0 | AF7: 0 | AG7: 0 | AH7: 92636 | AI7: 20697 | AJ7: 0 | AK7: 0 | AL7: 0 | AM7: 0 | AN7: 0 | AO7: 0 | AP7: 20697 | BA7: 2.65 | BB7: 1.8
A8: 40 | B8: 5 | C8: 2.65 | D8: 164690 | E8: 328108 | F8: 144887 | G8: 144887 | H8: =MIN(E8,((1/3)*(D5+D6+D7))) -> 147695 | I8: =MIN(H8,(0.025*H8*B8)) -> 18462 | J8: =MIN(H8,B8*H8*MAX($F$53,N8)) -> 13293 | K8: =(1/3)*(G5+G6+G7) -> 137934 | L8: 17242 | M8: =MIN(K8,B8*K8*MAX($F$53,N8)) -> 12414 | N8: 0.000 | O8: 24704 | P8: 122986 | Q8: 25741 | S8: 1386 | T8: 2287 | U8: 479 | V8: 8235 | W8: 40995 | X8: 8580 | Y8: 21473 | AA8: 5% | AB8: 6% | AC8: 6% | AE8: 0 | AF8: 0 | AG8: 0 | AH8: 122986 | AI8: 25741 | AJ8: 0 | AK8: 0 | AL8: 0 | AM8: 0 | AN8: 0 | AO8: 0 | AP8: 25741 | BA8: 2.65 | BB8: 1.65
A9: 41 | B9: 6 | C9: 2.6 | D9: 173995 | E9: 336311 | F9: 148509 | G9: 148509 | H9: =MIN(E9,((1/3)*(D6+D7+D8))) -> 156040 | I9: =MIN(H9,(0.025*H9*B9)) -> 23406 | J9: =MIN(H9,B9*H9*MAX($F$53,N9)) -> 16852 | K9: 141382 | L9: 21207 | M9: =MIN(K9,B9*K9*MAX($F$53,N9)) -> 15269 | N9: 0.000 | O9: 26099 | P9: 156747 | Q9: 30732 | S9: 1784 | T9: 3870 | U9: 759 | V9: 8700 | W9: 52249 | X9: 10244 | Y9: 26272 | AA9: 6% | AB9: 7% | AC9: 7% | AE9: 0 | AF9: 0 | AG9: 0 | AH9: 156747 | AI9: 30732 | AJ9: 1784 | AK9: 0 | AL9: 0 | AM9: 8700 | AN9: 0 | AO9: 0 | AP9: 30732 | BA9: 2.6 | BB9: 1.5
A10: 42 | B10: 7 | C10: 2.6 | D10: 183739 | E10: 344719 | F10: 152222 | G10: 152222 | H10: 164856 | I10: 28850 | J10: 20772 | K10: 144916 | L10: 25360 | M10: 18259 | N10: 0.000 | O10: 27561 | P10: 194224 | Q10: 35672 | S10: 2206 | T10: 5970 | U10: 1096 | V10: 9187 | W10: 64741 | X10: 11891 | Y10: 31247 | AA10: 7% | AB10: 8% | AC10: 8% | AE10: =K10*(B10 >$H$53) -> 144916 | AF10: 3623 | AG10: 2608 | AH10: 167327 | AI10: 30732 | AJ10: 2206 | AK10: 1839 | AL10: 338 | AM10: 9187 | AN10: 8966 | AO10: 1647 | AP10: 35325 | BA10: 2.6 | BB10: 1.4
A11: 43 | B11: 8 | C11: 2.55 | D11: 194029 | E11: 353337 | F11: 156027 | G11: 156027 | H11: 174142 | I11: 34828 | J11: 25076 | K11: 148539 | L11: 29708 | M11: 21390 | N11: 0.000 | O11: 29104 | P11: 235738 | Q11: 40559 | S11: 2660 | T11: 8646 | U11: 1488 | V11: 9701 | W11: 78579 | X11: 13520 | Y11: 36397 | AA11: 8% | AB11: 9% | AC11: 9% | AE11: 148539 | AF11: 7427 | AG11: 5347 | AH11: 178622 | AI11: 30732 | AJ11: 2660 | AK11: 4236 | AL11: 729 | AM11: 9701 | AN11: 19039 | AO11: 3276 | AP11: 40084 | BA11: 2.55 | BB11: 1.3
A12: 44 | B12: 9 | C12: 2.5 | D12: 204797 | E12: 362170 | F12: 159928 | G12: 159928 | H12: 183921 | I12: 41382 | J12: 29795 | K12: 152253 | L12: 34257 | M12: 24665 | N12: 0.000 | O12: 30720 | P12: 281644 | Q12: 45394 | S12: 3141 | T12: 11971 | U12: 1929 | V12: 10240 | W12: 93881 | X12: 15131 | Y12: 41726 | AA12: 9% | AB12: 10% | AC12: 10% | AE12: 152253 | AF12: 11419 | AG12: 8222 | AH12: 190679 | AI12: 30732 | AJ12: 3141 | AK12: 7264 | AL12: 1171 | AM12: 10240 | AN12: 30322 | AO12: 4887 | AP12: 45012 | BA12: 2.5 | BB12: 1.2
A13: 45 | B13: 10 | C13: 2.4 | D13: 216061 | E13: 371225 | F13: 163926 | G13: 163926 | H13: 194188 | I13: 48547 | J13: 34954 | K13: 156059 | L13: 39015 | M13: 28091 | N13: 0.000 | O13: 32409 | P13: 332314 | Q13: 50173 | S13: 3649 | T13: 16016 | U13: 2418 | V13: 10803 | W13: 110771 | X13: 16724 | Y13: 47233 | AA13: 10% | AB13: 11% | AC13: 11% | AE13: 156059 | AF13: 15606 | AG13: 11236 | AH13: 203549 | AI13: 30732 | AJ13: 3649 | AK13: 10991 | AL13: 1659 | AM13: 10803 | AN13: 42922 | AO13: 6480 | AP13: 50108 | BA13: 2.4 | BB13: 1.1
A14: 46 | B14: 11 | C14: 2.4 | D14: 227728 | E14: 380505 | F14: 168025 | G14: 168025 | H14: 204962 | I14: 56365 | J14: 40583 | K14: 159961 | L14: 43989 | M14: 31672 | N14: 0.000 | O14: 34159 | P14: 388145 | Q14: 54897 | S14: 4179 | T14: 20858 | U14: 2950 | V14: 11386 | W14: 129382 | X14: 18299 | Y14: 52921 | AA14: 12% | AB14: 12% | AC14: 12% | AE14: 159961 | AF14: 19995 | AG14: 14396 | AH14: 217289 | AI14: 30732 | AJ14: 4179 | AK14: 15494 | AL14: 2191 | AM14: 11386 | AN14: 56952 | AO14: 8055 | AP14: 55375 | BA14: 2.4 | BB14: 1
A15: 47 | B15: 12 | C15: 2.3 | D15: 240026 | E15: 390018 | F15: 172225 | G15: 172225 | H15: 216196 | I15: 64859 | J15: 46698 | K15: 163960 | L15: 49188 | M15: 35415 | N15: 0.000 | O15: 36004 | P15: 449549 | Q15: 59562 | S15: 4746 | T15: 26573 | U15: 3521 | V15: 12001 | W15: 149850 | X15: 19854 | Y15: 58790 | AA15: 13% | AB15: 13% | AC15: 13% | AE15: 163960 | AF15: 24594 | AG15: 17708 | AH15: 231956 | AI15: 30732 | AJ15: 4746 | AK15: 20847 | AL15: 2762 | AM15: 12001 | AN15: 72531 | AO15: 9610 | AP15: 60812 | BA15: 2.3 | BB15: 0.9
A16: 48 | B16: 13 | C16: 2.2 | D16: 252747 | E16: 399768 | F16: 176531 | G16: 176531 | H16: 227938 | I16: 74080 | J16: 53338 | K16: 168059 | L16: 54619 | M16: 39326 | N16: 0.000 | O16: 37912 | P16: 516998 | Q16: 64167 | S16: 5335 | T16: 33258 | U16: 4128 | V16: 12637 | W16: 172333 | X16: 21389 | Y16: 64842 | AA16: 14% | AB16: 14% | AC16: 15% | AE16: 168059 | AF16: 29410 | AG16: 21175 | AH16: 247613 | AI16: 30732 | AJ16: 5335 | AK16: 27145 | AL16: 3369 | AM16: 12637 | AN16: 89795 | AO16: 11145 | AP16: 66422 | BA16: 2.2 | BB16: 0.85
A17: 49 | B17: 14 | C17: 2.1 | D17: 265890 | E17: 409762 | F17: 180944 | G17: 180944 | H17: 240167 | I17: 84058 | J17: 60522 | K17: 172260 | L17: 60291 | M17: 43410 | N17: 0.000 | O17: 39883 | P17: 590966 | Q17: 68709 | S17: 5946 | T17: 41001 | U17: 4767 | V17: 13294 | W17: 196989 | X17: 22903 | Y17: 71080 | AA17: 16% | AB17: 15% | AC17: 16% | AE17: 172260 | AF17: 34452 | AG17: 24805 | AH17: 264327 | AI17: 30732 | AJ17: 5946 | AK17: 34475 | AL17: 4008 | AM17: 13294 | AN17: 108880 | AO17: 12659 | AP17: 72205 | BA17: 2.1 | BB17: 0.8
A18: 50 | B18: 15 | C18: 2 | D18: 279450 | E18: 420006 | F18: 185468 | G18: 185468 | H18: 252888 | I18: 94833 | J18: 68280 | K18: 176567 | L18: 66212 | M18: 47673 | N18: 0.000 | O18: 41918 | P18: 671959 | Q18: 73186 | S18: 6579 | T18: 49897 | U18: 5435 | V18: 13973 | W18: 223986 | X18: 24395 | Y18: 77503 | AA18: 17% | AB18: 16% | AC18: 17% | AE18: 176567 | AF18: 39727 | AG18: 28604 | AH18: 282169 | AI18: 30732 | AJ18: 6579 | AK18: 42931 | AL18: 4676 | AM18: 13973 | AN18: 129930 | AO18: 14151 | AP18: 78163 | BA18: 2 | BB18: 0.75
A19: 51 | B19: 16 | C19: 2 | D19: 293423 | E19: 430507 | F19: 190104 | G19: 190104 | H19: 266029 | I19: 106412 | J19: 76616 | K19: 180981 | L19: 72392 | M19: 52122 | N19: 0.000 | O19: 44013 | P19: 760516 | Q19: 77594 | S19: 7232 | T19: 60045 | U19: 6126 | V19: 14671 | W19: 253505 | X19: 25865 | Y19: 84113 | AA19: 18% | AB19: 17% | AC19: 19% | AE19: 180981 | AF19: 45245 | AG19: 32577 | AH19: 301216 | AI19: 30732 | AJ19: 7232 | AK19: 52608 | AL19: 5367 | AM19: 14671 | AN19: 153100 | AO19: 15620 | AP19: 84297 | BA19: 2 | BB19: 0.7
A20: 52 | B20: 17 | C20: 2 | D20: 308094 | E20: 441269 | F20: 194857 | G20: 194857 | H20: 279588 | I20: 118825 | J20: 85554 | K20: 185505 | L20: 78840 | M20: 56765 | N20: 0.000 | O20: 46214 | P20: 857210 | Q20: 81929 | S20: 7927 | T20: 71551 | U20: 6839 | V20: 15405 | W20: 285737 | X20: 27310 | Y20: 90913 | AA20: 20% | AB20: 18% | AC20: 20% | AE20: 185505 | AF20: 51014 | AG20: 36730 | AH20: 321548 | AI20: 30732 | AJ20: 7927 | AK20: 63613 | AL20: 6080 | AM20: 15405 | AN20: 178554 | AO20: 17066 | AP20: 90608 | BA20: 2 | BB20: 0.65
A21: =A20+1 -> 53 | B21: 18 | C21: 2 | D21: 323499 | E21: =E20*(1+$D$53) -> 452301 | F21: 199728 | G21: 199728 | H21: 293656 | I21: 132145 | J21: 95144 | K21: 190143 | L21: 85564 | M21: 61606 | N21: 0.000 | O21: 48525 | P21: 962698 | Q21: 86193 | S21: 8664 | T21: 84550 | U21: 7570 | V21: 16175 | W21: 320899 | X21: 28731 | Y21: 97907 | AA21: 22% | AB21: 19% | AC21: 21% | AE21: 190143 | AF21: 57043 | AG21: 41071 | AH21: 343252 | AI21: 30732 | AJ21: 8664 | AK21: 76076 | AL21: 6811 | AM21: 16175 | AN21: 206482 | AO21: 18487 | AP21: 97101 | BA21: 2 | BB21: 0.6
A22: 54 | B22: 19 | C22: 2 | D22: 339674 | E22: 463609 | F22: 204722 | G22: 204722 | H22: 308338 | I22: 146461 | J22: 105452 | K22: 194897 | L22: 92576 | M22: 66655 | N22: 0.000 | O22: 50951 | P22: 1077689 | Q22: 90387 | S22: 9447 | T22: 99186 | U22: 8319 | V22: 16984 | W22: 359230 | X22: 30129 | Y22: 105103 | AA22: 23% | AB22: 20% | AC22: 23% | AE22: 194897 | AF22: 63341 | AG22: 45606 | AH22: 366422 | AI22: 30732 | AJ22: 9447 | AK22: 90139 | AL22: 7560 | AM22: 16984 | AN22: 237089 | AO22: 19885 | AP22: 103783 | BA22: 2 | BB22: 0.55
A23: 55 | B23: 20 | C23: 2 | D23: 356657 | E23: 475199 | F23: 209840 | G23: 209840 | H23: 323755 | I23: 161878 | J23: 116552 | K23: 199769 | L23: 99884 | M23: 71917 | N23: 0.011 | O23: 53499 | P23: 1202942 | Q23: 94513 | S23: 10277 | T23: 115617 | U23: 9084 | V23: 17833 | W23: 400981 | X23: 31504 | Y23: 112505 | AA23: 25% | AB23: 21% | AC23: 24% | AE23: 199769 | AF23: 69919 | AG23: 50342 | AH23: 391155 | AI23: 30732 | AJ23: 10277 | AK23: 105959 | AL23: 8325 | AM23: 17833 | AN23: 270596 | AO23: 21260 | AP23: 110659 | BA23: 2 | BB23: 0.5
A24: 56 | B24: 21 | C24: 2 | D24: 374490 | E24: 487079 | F24: 215086 | G24: 215086 | H24: 339943 | I24: 178470 | J24: 128499 | K24: 204763 | L24: 107501 | M24: 77400 | N24: 0.012 | O24: 56174 | P24: 1339274 | Q24: 98571 | S24: 11158 | T24: 134012 | U24: 9863 | V24: 18725 | W24: 446425 | X24: 32857 | Y24: 120121 | AA24: 26% | AB24: 22% | AC24: 26% | AE24: 204763 | AF24: 76786 | AG24: 55286 | AH24: 417558 | AI24: 30732 | AJ24: 11158 | AK24: 123703 | AL24: 9105 | AM24: 18725 | AN24: 307239 | AO24: 22613 | AP24: 117736 | BA24: 2 | BB24: =BB23 -> 0.5
A25: 57 | B25: 22 | C25: 2 | D25: 393215 | E25: 499256 | F25: 220463 | G25: 220463 | H25: 356940 | I25: 196317 | J25: 141348 | K25: 209882 | L25: 115435 | M25: 83113 | N25: 0.014 | O25: 58982 | P25: 1487566 | Q25: 102562 | S25: 12093 | T25: 154557 | U25: 10656 | V25: 19661 | W25: 495855 | X25: 34187 | Y25: 127957 | AA25: 28% | AB25: 23% | AC25: 27% | AE25: 209882 | AF25: 83953 | AG25: 60446 | AH25: 445743 | AI25: 30732 | AJ25: 12093 | AK25: 143552 | AL25: 9897 | AM25: 19661 | AN25: 347274 | AO25: 23943 | AP25: 125019 | BA25: 2 | BB25: 0.5
A26: 58 | B26: 23 | C26: 2 | D26: 412875 | E26: 511737 | F26: 225974 | G26: 225974 | H26: 374787 | I26: 215503 | J26: 155162 | K26: 215129 | L26: 123699 | M26: 89064 | N26: 0.015 | O26: 61931 | P26: 1648762 | Q26: 106488 | S26: 13083 | T26: 177452 | U26: 11461 | V26: 20644 | W26: 549587 | X26: 35496 | Y26: 136021 | AA26: 30% | AB26: 23% | AC26: 29% | AE26: 215129 | AF26: 91430 | AG26: 65830 | AH26: 475831 | AI26: 30732 | AJ26: 13083 | AK26: 165705 | AL26: 10702 | AM26: 20644 | AN26: 390977 | AO26: 25252 | AP26: 132516 | BA26: 2 | BB26: 0.5
A27: 59 | B27: 24 | C27: 2 | D27: 433519 | E27: 524531 | F27: 231624 | G27: 231624 | H27: 393527 | I27: 236116 | J27: 170004 | K27: 220508 | L27: 132305 | M27: 95259 | N27: 0.017 | O27: 65028 | P27: 1823878 | Q27: 110349 | S27: 14133 | T27: 202913 | U27: 12277 | V27: 21676 | W27: 607959 | X27: 36783 | Y27: 144319 | AA27: 32% | AB27: 24% | AC27: 31% | AE27: 220508 | AF27: 99228 | AG27: 71444 | AH27: 507949 | AI27: 30732 | AJ27: 14133 | AK27: 190373 | AL27: 11518 | AM27: 21676 | AN27: 438643 | AO27: 26539 | AP27: 140234 | BA27: 2 | BB27: 0.5
A28: 60 | B28: 25 | C28: 1.9 | D28: 455195 | E28: 537644 | F28: 237414 | G28: 237414 | H28: 413203 | I28: 258252 | J28: 185941 | K28: 226020 | L28: 141263 | M28: 101709 | N28: 0.018 | O28: 68279 | P28: 2014006 | Q28: 114148 | S28: 15245 | T28: 231175 | U28: 13102 | V28: 22760 | W28: 671335 | X28: 38049 | Y28: 152861 | AA28: 34% | AB28: 25% | AC28: 33% | AE28: 226020 | AF28: 107360 | AG28: 77299 | AH28: 542236 | AI28: 30732 | AJ28: 15245 | AK28: 217788 | AL28: 12344 | AM28: 22760 | AN28: 490590 | AO28: 27805 | AP28: 148180 | BA28: 1.9 | BB28: 0.5
A29: 61 | B29: 26 | C29: 1.8 | D29: 477500 | E29: 551085 | F29: 243350 | G29: 243350 | H29: 433863 | I29: 282011 | J29: 218841 | K29: 231671 | L29: 150586 | M29: 116855 | N29: 0.019 | O29: 71625 | P29: 2220318 | Q29: 126983 | S29: 16391 | T29: 262490 | U29: 15012 | V29: 23875 | W29: 740106 | X29: 42328 | Y29: 174195 | AA29: 36% | AB29: 27% | AC29: 35% | AE29: 231671 | AF29: 115835 | AG29: 89888 | AH29: 578837 | AI29: 33105 | AJ29: 16391 | AK29: 248199 | AL29: 14195 | AM29: 23875 | AN29: 547161 | AO29: 31293 | AP29: 168481 | BA29: 1.8 | BB29: 0.5
A30: 62 | B30: 27 | C30: 1.7 | D30: 500420 | E30: 564862 | F30: 249433 | G30: 249433 | H30: 455405 | I30: 307398 | J30: 255755 | K30: 237462 | L30: 160287 | M30: 133359 | N30: 0.021 | O30: 75063 | P30: 2444005 | Q30: 141117 | S30: 17569 | T30: 297100 | U30: 17155 | V30: 25021 | W30: 814668 | X30: 47039 | Y30: 197553 | AA30: 39% | AB30: 28% | AC30: 38% | AE30: 237462 | AF30: 124668 | AG30: 103724 | AH30: 617908 | AI30: 35678 | AJ30: 17569 | AK30: 281844 | AL30: 16274 | AM30: 25021 | AN30: 608699 | AO30: 35146 | AP30: 190822 | BA30: 1.7 | BB30: 0.5
A31: 63 | B31: 28 | C31: 1.6 | D31: 523939 | E31: 578984 | F31: 255669 | G31: 255669 | H31: 477705 | I31: 334393 | J31: 296941 | K31: 243399 | L31: 170379 | M31: 151297 | N31: 0.022 | O31: 78591 | P31: 2686333 | Q31: 156682 | S31: 18779 | T31: 335260 | U31: 19554 | V31: 26197 | W31: 895444 | X31: 52227 | Y31: 223078 | AA31: 43% | AB31: 30% | AC31: 41% | AE31: 243399 | AF31: 133869 | AG31: 118876 | AH31: 659617 | AI31: 38473 | AJ31: 18779 | AK31: 318975 | AL31: 18604 | AM31: 26197 | AN31: 675572 | AO31: 39403 | AP31: 215356 | BA31: 1.6 | BB31: 0.5
A32: 64 | B32: 29 | C32: 1.5 | D32: 548041 | E32: 593458 | F32: 262061 | G32: 262061 | H32: 500620 | I32: 362949 | J32: 342624 | K32: 249484 | L32: 180876 | M32: 170747 | N32: 0.024 | O32: 82206 | P32: 2948654 | Q32: 173827 | S32: 20019 | T32: 377243 | U32: 22239 | V32: 27402 | W32: 982885 | X32: 57942 | Y32: 250928 | AA32: 46% | AB32: 32% | AC32: 44% | AE32: 249484 | AF32: 143453 | AG32: 135420 | AH32: 704141 | AI32: 41510 | AJ32: 20019 | AK32: 359858 | AL32: 21214 | AM32: 27402 | AN32: 748171 | AO32: 44106 | AP32: 242250 | BA32: 1.5 | BB32: 0.5
A33: 65 | B33: 30 | C33: 1.25 | D33: 572702 | E33: 608295 | F33: 268612 | G33: 268612 | H33: 524133 | I33: 393100 | J33: 393100 | K33: 255721 | L33: 191791 | M33: 191791 | N33: 0.025 | O33: 85905 | P33: 3232407 | Q33: 192718 | S33: 21286 | T33: 423338 | U33: 25240 | V33: 28635 | W33: 1077469 | X33: 64239 | Y33: 281270 | AA33: 49% | AB33: 34% | AC33: 47% | AE33: 255721 | AF33: 153433 | AG33: 153433 | AH33: 751671 | AI33: 44815 | AJ33: 21286 | AK33: 404779 | AL33: 24133 | AM33: 28635 | AN33: 826912 | AO33: 49301 | AP33: 271682 | BA33: 1.25 | BB33: 0.5
A34: 66 | B34: 31 | C34: 1.25 | D34: 597042 | E34: 623502 | F34: 275328 | G34: 275328 | H34: 548227 | I34: 424876 | J34: 424876 | K34: 262114 | L34: 203138 | M34: 203138 | N34: 0.025 | O34: 89556 | P34: 3539126 | Q34: 213543 | S34: 22520 | T34: 473850 | U34: 28591 | V34: 29852 | W34: 1179709 | X34: 71181 | Y34: 302910 | AA34: 51% | AB34: 36% | AC34: 49% | AE34: 262114 | AF34: 163821 | AG34: 163821 | AH34: 802409 | AI34: 48415 | AJ34: 22520 | AK34: 454039 | AL34: 27396 | AM34: 29852 | AN34: 912239 | AO34: 55042 | AP34: 294675 | BA34: 1.25 | BB34: 0.5
A35: 67 | B35: 32 | C35: 1.25 | D35: 622417 | E35: 639090 | F35: 282211 | G35: 282211 | H35: 572595 | I35: 458076 | J35: 458076 | K35: 268667 | L35: 214934 | M35: 214934 | N35: 0.025 | O35: 93362 | P35: 3870312 | Q35: 236502 | S35: 23814 | T35: 529043 | U35: 32328 | V35: 31121 | W35: 1290104 | X35: 78834 | Y35: 326096 | AA35: 52% | AB35: 38% | AC35: 51% | AE35: 268667 | AF35: 174634 | AG35: 174634 | AH35: 856571 | AI35: 52342 | AJ35: 23814 | AK35: 507895 | AL35: 31036 | AM35: 31121 | AN35: 1004580 | AO35: 61387 | AP35: 319398 | BA35: 1.25 | BB35: 0.5
A36: 68 | B36: 33 | C36: 1.25 | D36: 648869 | E36: 655067 | F36: 289266 | G36: 289266 | H36: 597387 | I36: 492844 | J36: 492844 | K36: 275384 | L36: 227192 | M36: 227192 | N36: 0.025 | O36: 97330 | P36: 4227775 | Q36: 261839 | S36: 25172 | T36: 589296 | U36: 36497 | V36: 32443 | W36: 1409258 | X36: 87280 | Y36: 350968 | AA36: 54% | AB36: 40% | AC36: 53% | AE36: 275384 | AF36: 185884 | AG36: 185884 | AH36: 914390 | AI36: 56631 | AJ36: 25172 | AK36: 566721 | AL36: 35099 | AM36: 32443 | AN36: 1104462 | AO36: 68403 | AP36: 346016 | BA36: 1.25 | BB36: 0.5
A37: =A36+1 -> 69 | B37: 34 | C37: 1.25 | D37: 676446 | E37: =E36*(1+$D$53) -> 671443 | F37: 296498 | G37: 296498 | H37: 622776 | I37: 529360 | J37: 529360 | K37: 282268 | L37: 239928 | M37: 239928 | N37: 0.025 | O37: 100717 | P37: 4613456 | Q37: 289826 | S37: 26246 | T37: 655015 | U37: 41149 | V37: 33572 | W37: 1537819 | X37: 96609 | Y37: 377686 | AA37: 56% | AB37: 43% | AC37: 55% | AE37: 282268 | AF37: 197588 | AG37: 197588 | AH37: 976111 | AI37: 61321 | AJ37: 26246 | AK37: 630916 | AL37: 39635 | AM37: 33572 | AN37: 1212448 | AO37: 76168 | AP37: 374713 | BA37: 1.25 | BB37: 0.5
A38: 70 | B38: 35 | C38: 1.25 | D38: 705195 | E38: 688230 | F38: 303910 | G38: 303910 | H38: 649244 | I38: 568088 | J38: 568088 | K38: 289325 | L38: 253159 | M38: 253159 | N38: 0.025 | O38: 103234 | P38: 5028659 | Q38: 320728 | S38: 26902 | T38: 726278 | U38: 46322 | V38: 34411 | W38: 1676220 | X38: 106909 | Y38: 406390 | AA38: 58% | AB38: 45% | AC38: 58% | AE38: 289325 | AF38: 209761 | AG38: 209761 | AH38: 1041999 | AI38: 66459 | AJ38: 26902 | AK38: 700552 | AL38: 44681 | AM38: 34411 | AN38: 1328887 | AO38: 84756 | AP38: 405657 | BA38: 1.25 | BB38: 0.5
A39: 71 | B39: 36 | C39: 1.25 | D39: 735166 | E39: 705435 | F39: 311508 | G39: 311508 | H39: 676837 | I39: 609153 | J39: 609153 | K39: 296558 | L39: 266902 | M39: 266902 | N39: 0.025 | O39: 105815 | P39: 5474485 | Q39: 354826 | S39: 27575 | T39: 803026 | U39: 52048 | V39: 35272 | W39: 1824828 | X39: 118275 | Y39: 437225 | AA39: 59% | AB39: 48% | AC39: 60% | AE39: 296558 | AF39: 222419 | AG39: 222419 | AH39: 1112333 | AI39: 72095 | AJ39: 27575 | AK39: 775564 | AL39: 50268 | AM39: 35272 | AN39: 1454050 | AO39: 94243 | AP39: 439025 | BA39: 1.25 | BB39: 0.5
A40: 72 | B40: 37 | C40: 1.25 | D40: 766410 | E40: 723071 | F40: 319296 | G40: 319296 | H40: 705602 | I40: 652682 | J40: 652682 | K40: 303972 | L40: 281174 | M40: 281174 | N40: 0.025 | O40: 108461 | P40: 5953063 | Q40: 392507 | S40: 28264 | T40: 885648 | U40: 58394 | V40: 36154 | W40: 1984354 | X40: 130836 | Y40: 470404 | AA40: 61% | AB40: 51% | AC40: 62% | AE40: 303972 | AF40: 235578 | AG40: 235578 | AH40: 1187416 | AI40: 78291 | AJ40: 28264 | AK40: 856332 | AL40: 56461 | AM40: 36154 | AN40: 1588549 | AO40: 104739 | AP40: 475069 | BA40: 1.25 | BB40: 0.5
A41: 73 | B41: 38 | C41: 1.25 | D41: 798983 | E41: 741148 | F41: 327278 | G41: 327278 | H41: 735591 | I41: 698811 | J41: 698811 | K41: 311571 | L41: 295993 | M41: 295993 | N41: 0.025 | O41: 111172 | P41: 6466671 | Q41: 434218 | S41: 28971 | T41: 974558 | U41: 65439 | V41: 37057 | W41: 2155557 | X41: 144739 | Y41: 506171 | AA41: 63% | AB41: 54% | AC41: 64% | AE41: 311571 | AF41: 249257 | AG41: 249257 | AH41: 1267567 | AI41: 85113 | AJ41: 28971 | AK41: 943263 | AL41: 63337 | AM41: 37057 | AN41: 1733035 | AO41: 116368 | AP41: 514076 | BA41: 1.25 | BB41: 0.5
A42: 74 | B42: 39 | C42: 1.25 | D42: 832940 | E42: 759677 | F42: 335460 | G42: 335460 | H42: 759677 | I42: 740685 | J42: 740685 | K42: 319361 | L42: 311377 | M42: 311377 | N42: 0.025 | O42: 113951 | P42: 7017742 | Q42: 480476 | S42: 29695 | T42: 1070197 | U42: 73272 | V42: 37984 | W42: 2339247 | X42: 160159 | Y42: 544807 | AA42: 65% | AB42: 58% | AC42: 67% | AE42: 319361 | AF42: 263473 | AG42: 263473 | AH42: 1353127 | AI42: 92643 | AJ42: 29695 | AK42: 1036790 | AL42: 70985 | AM42: 37984 | AN42: 1888205 | AO42: 129278 | AP42: 556378 | BA42: 1.25 | BB42: 0.5
A43: 75 | B43: 40 | C43: 1.25 | D43: 868340 | E43: 778669 | F43: 343847 | G43: 343847 | H43: 778669 | I43: 778669 | J43: 778669 | K43: 327345 | L43: 327345 | M43: 327345 | N43: 0.025 | O43: 116800 | P43: 7608875 | Q43: 531881 | S43: 30438 | T43: 1173039 | U43: 81999 | V43: 38933 | W43: 2536292 | X43: 177294 | Y43: 586637 | AA43: 68% | AB43: 61% | AC43: 69% | AE43: 327345 | AF43: 278243 | AG43: 278243 | AH43: 1444463 | AI43: 100972 | AJ43: 30438 | AK43: 1137376 | AL43: 79506 | AM43: 38933 | AN43: 2054804 | AO43: 143636 | AP43: 602357 | BA43: 1.25 | BB43: 0.5
A44: 76 | B44: 41 | C44: 1.25 | D44: 905244 | E44: 798135 | F44: 352443 | G44: 352443 | H44: 798135 | I44: 798135 | J44: 798135 | K44: 335528 | L44: 335528 | M44: 335528 | N44: 0.025 | O44: 119720 | P44: 8242845 | Q44: 589137 | S44: 31198 | T44: 1283587 | U44: 91741 | V44: 39907 | W44: 2747615 | X44: 196379 | Y44: 623649 | AA44: 69% | AB44: 65% | AC44: 72% | AE44: 335528 | AF44: 293587 | AG44: 293587 | AH44: 1541965 | AI44: 110208 | AJ44: 31198 | AK44: 1245517 | AL44: 89020 | AM44: 39907 | AN44: 2233627 | AO44: 159643 | AP44: 652459 | BA44: 1.25 | BB44: 0.5
A45: 77 | B45: 42 | C45: 1.25 | D45: 943717 | E45: 818089 | F45: 361254 | G45: 361254 | H45: 818089 | I45: 818089 | J45: 818089 | K45: 343916 | L45: 343916 | M45: 343916 | N45: 0.025 | O45: 122713 | P45: 8922618 | Q45: 653071 | S45: 31978 | T45: 1402381 | U45: 102644 | V45: 40904 | W45: 2974206 | X45: 217690 | Y45: 664251 | AA45: 70% | AB45: 69% | AC45: 75% | AE45: 343916 | AF45: 309525 | AG45: 309525 | AH45: 1646047 | AI45: 120479 | AJ45: 31978 | AK45: 1361742 | AL45: 99670 | AM45: 40904 | AN45: 2425524 | AO45: 177531 | AP45: 707204 | BA45: 1.25 | BB45: 0.5
A46: 78 | B46: 43 | C46: 1.25 | D46: 983825 | E46: 838541 | F46: 370285 | G46: 370285 | H46: 838541 | I46: 838541 | J46: 838541 | K46: 352514 | L46: 352514 | M46: 352514 | N46: 0.025 | O46: 125781 | P46: 9651360 | Q46: 724663 | S46: 32778 | T46: 1529998 | U46: 114878 | V46: 41927 | W46: 3217120 | X46: 241554 | Y46: 708947 | AA46: 72% | AB46: 74% | AC46: 78% | AE46: 352514 | AF46: 326076 | AG46: 326076 | AH46: 1757155 | AI46: 131934 | AJ46: 32778 | AK46: 1486616 | AL46: 111621 | AM46: 41927 | AN46: 2631401 | AO46: 197576 | AP46: 767208 | BA46: 1.25 | BB46: 0.5
A47: 79 | B47: 44 | C47: 1.25 | D47: 1025637 | E47: 859504 | F47: 379542 | G47: 379542 | H47: 859504 | I47: 859504 | J47: 859504 | K47: 361327 | L47: 361327 | M47: 361327 | N47: 0.025 | O47: 128926 | P47: 10432453 | Q47: 805083 | S47: 33597 | T47: 1667053 | U47: 128648 | V47: 42975 | W47: 3477484 | X47: 268361 | Y47: 758336 | AA47: 74% | AB47: 78% | AC47: 81% | AE47: 361327 | AF47: 343261 | AG47: 343261 | AH47: 1875763 | AI47: 144755 | AJ47: 33597 | AK47: 1620742 | AL47: 125074 | AM47: 42975 | AN47: 2852230 | AO47: 220109 | AP47: 833199 | BA47: 1.25 | BB47: 0.5
A48: 80 | B48: 45 | C48: 1.25 | D48: 1069227 | E48: 880992 | F48: 389031 | G48: 389031 | H48: 880992 | I48: 880992 | J48: 880992 | K48: 370360 | L48: 370360 | M48: 370360 | N48: 0.025 | O48: 132149 | P48: 11269511 | Q48: 895736 | S48: 34437 | T48: 1814204 | U48: 144199 | V48: 44050 | W48: 3756504 | X48: 298579 | Y48: 813138 | AA48: 76% | AB48: 84% | AC48: 85% | AE48: 370360 | AF48: 361101 | AG48: 361101 | AH48: 2002377 | AI48: 159155 | AJ48: 34437 | AK48: 1764767 | AL48: 140269 | AM48: 44050 | AN48: 3089044 | AO48: 245527 | AP48: 906053 | BA48: 1.25 | BB48: 0.5
A49: 81 | B49: 46 | C49: 1.25 | D49: 1114669 | E49: 903017 | F49: 398757 | G49: 398757 | H49: 903017 | I49: 903017 | J49: 903017 | K49: 379619 | L49: 379619 | M49: 379619 | N49: 0.025 | O49: 135453 | P49: 12166392 | Q49: 998326 | S49: 35298 | T49: 1972152 | U49: 161827 | V49: 45151 | W49: 4055464 | X49: 332775 | Y49: 874222 | AA49: 78% | AB49: 90% | AC49: 89% | AE49: 379619 | AF49: 379619 | AG49: 379619 | AH49: 2137538 | AI49: 175398 | AJ49: 35298 | AK49: 1919379 | AL49: 157497 | AM49: 45151 | AN49: 3342951 | AO49: 274309 | AP49: 986823 | BA49: 1.25 | BB49: 0.5
A50: 82 | B50: 47 | C50: 1.25 | D50: 1162043 | E50: 925592 | F50: 408726 | G50: 408726 | H50: 925592 | I50: 925592 | J50: 925592 | K50: 389110 | L50: 389110 | M50: 389110 | N50: 0.025 | O50: 138839 | P50: 13127217 | Q50: 1114940 | S50: 36181 | T50: 2141650 | U50: 181898 | V50: 46280 | W50: 4375739 | X50: 371647 | Y50: 942654 | AA50: 81% | AB50: 96% | AC50: 92% | AE50: 389110 | AF50: 389110 | AG50: 389110 | AH50: 2281822 | AI50: 193803 | AJ50: 36181 | AK50: 2085314 | AL50: 177113 | AM50: 46280 | AN50: 3615132 | AO50: 307046 | AP50: 1067072 | BA50: 1.25 | BB50: 0.5
A52: Hire Age | B52: Start Salary | C52: interest | D52: inflation | E52: Minimum retirement age | F52: Age Factor | G52: UC Pension COLA | H52: 2nd Choice Start Must be between 5 and 10 years | I52: Annuity End Age | Q52: Faculty = 1 or Staff (Faculty=0)
A53: =Home_Page!D4 -> 35 | B53: =Home_Page!D6 -> 125000 | C53: =Home_Page!I3/100 -> 6.75% | D53: =Home_Page!I5/100 -> 2.50% | E53: =Home_Page!D9 -> 60 | F53: =0.018 + IF(AND($E$53>60,$E$53<65),0.0014*($E$53-60)) + IF($E$53>64,(0.025-0.018),0) -> 0.018 | G53: =MIN(D53,IF(D53<0.04,0.02,MIN(0.06,(0.02+0.75*(D53-0.04))))) -> 2.00% | H53: =Home_Page!I7 -> 6 | I53: =Home_Page!I10 -> 100 | J53: Cells in Blue on this row should only be changed on the Home Page | Q53: =IF(Home_Page!$D$3="YES",1,0) -> 1
A55: Entries in the next 5 rows should not be changed
A56: 0.08 | B56: UC contribution to savings
A57: 0.07 | B57: UC Employee contribution to savings
A58: =VLOOKUP($E$53,A3:D50,4) -> 455195 | B58: Salary at retirement age (in cell $e$53)
C59: =(1+$C$53)^(1/12) -> 1.00545813 | D59: Annual rate of return corresponding to receiving monthly savings increments
C60: =C59^11+C59^10+C59^9+C59^8+C59^7+C59^6+C59^5+C59^4+C59^3+C59^2+C59+1 -> 12.36687187 | D60: Used to accumulate monthly savings increments
A62: Each row corresponds to the situation at the start of the year for stock variables like savings balances
A63: Columns Q, Y, and AP give the expected annual payout from Savings Choice, Pension Choice, and Second Choice (with election at service year in cell $H$53)
A64: Each row from Service year 1 - 34 corresponds to separating at age given in row A and retiring at age Max(Age, Minimum Retirement Age in cell $E$53)
A65: All savings balances are converted to an annuity starting at Max(age in Col A, minimum retirement age in Cell $E$53) and ending at age in Cell $I$53 with payouts growing at the UC Pension COLA rate in cell $G$53
A66: The Replacement Ratios give the ratio of the pension payouts to projected UC salary in column D
A68: Full descriptions of each column are given in:
A69: https://senate.universityofcalifornia.edu/_files/committees/tfir/excel-sheet-description.pdf
